fUSD/lending_fUSD_20241003
["ID","MTS","AMOUNT","RATE_DAILY","PERIOD"]
[339741251,1727921432141,-350.0,0.00015,2]
[339741252,1727921432150,-335.4647415,0.00015014,2]
[339741253,1727921432162,-464.5352585,0.00015014,2]
[339741254,1727921432171,-205.0,0.0001509,2]
[339741255,1727921432181,-205.0,0.0001559,2]
[339741256,1727921432190,-205.0,0.0001608,2]
[339741257,1727921432199,-499.99,0.0001608,2]
[339741258,1727921432209,-8282.183272,0.0001629,2]
[339741259,1727921432219,-179.99,0.00016372,2]
[339741260,1727921432228,-2273.39,0.00016372,2]
[339741261,1727921432237,-150.99,0.00016372,2]
[339741262,1727921432246,-310.3,0.00016384,2]
[339741263,1727921432255,-155.361,0.0001639,2]
[339741264,1727921432265,-250.0,0.00016438,2]
[339741265,1727921432275,-205.0,0.0001657,2]
[339741266,1727921432284,-425.07,0.00016846,2]
[339741267,1727921432294,-400.0,0.00017,2]
[339741268,1727921432303,-205.0,0.0001706,2]
[339741269,1727921432313,-150.15,0.00017091,2]
[339741270,1727921432322,-250.0,0.00017247,2]
[339741271,1727921432331,-250.0,0.00017274,2]
[339741272,1727921432340,-913.48,0.00017274,2]
[339741273,1727921432350,-156.05,0.00017319,2]
[339741274,1727921432360,-205.0,0.0001755,2]
[339741275,1727921432369,-210.0,0.00017573,2]
[339741276,1727921432379,-11218.59,0.00017574,2]
[339741277,1727921432388,-215.0,0.0001771,2]
[339741278,1727921432397,-202.0,0.0001771,2]
[339741279,1727921432407,-1948.84,0.00017886,2]
[339741280,1727921432416,-452.208635,0.000179,2]
[339741281,1727921432804,-1943.87,0.00017992,2]
[339741283,1727921432839,-150.0,0.00018,2]
[339741284,1727921432850,-150.0,0.00018,2]
[339741285,1727921432862,-254.832,0.00018,2]
[339741286,1727921432871,-168.48532133,0.00018,2]
[339741287,1727921432880,-427.33,0.00018038,2]
[339741288,1727921432891,-205.0,0.0001805,2]
[339741289,1727921432903,-179.71,0.00018055,2]
[339741290,1727921432914,-250.0,0.00018071,2]
[339741291,1727921432925,-215.0,0.0001808,2]
[339741292,1727921432937,-202.0,0.0001808,2]
[339741293,1727921432947,-2000.0,0.00018107,2]
[339741294,1727921432958,-19406.93242924,0.00018266,2]
[339741295,1727921432971,-4483.06757076,0.00018266,2]
[339741296,1727921432982,-200.0,0.00018311,2]
[339741297,1727921432992,-215.0,0.0001844,2]
[339741298,1727921433002,-202.0,0.0001844,2]
[339741299,1727921433012,-237.3,0.00018521,2]
[339741300,1727921433023,-205.0,0.0001854,2]
[339741301,1727921433032,-310.3,0.00018648,2]
[339741302,1727921433042,-215.0,0.0001881,2]
[339741303,1727921433052,-202.0,0.0001881,2]
[339741304,1727921433061,-450.0,0.00019,2]
[339741305,1727921433071,-205.0,0.0001903,2]
[339741306,1727921433080,-202.0,0.0001917,2]
[339741307,1727921433089,-215.0,0.0001917,2]
[339741308,1727921433099,-500.0,0.00019178,2]
[339741309,1727921433108,-3293.57,0.00019178,2]
[339741310,1727921433118,-771.34,0.00019178,2]
[339741311,1727921433127,-500.0,0.00019178,2]
[339741312,1727921433136,-500.0,0.00019178,2]
[339741313,1727921433146,-2143.19,0.00019178,2]
[339741314,1727921433155,-500.0,0.00019178,2]
[339741315,1727921433165,-500.0,0.00019178,2]
[339741316,1727921433174,-1074.93,0.00019178,2]
[339741317,1727921433184,-608.43,0.00019178,2]
[339741318,1727921433193,-500.0,0.00019178,2]
[339741319,1727921433202,-500.0,0.00019178,2]
[339741320,1727921433212,-500.0,0.00019178,2]
[339741321,1727921433222,-972.12,0.00019178,2]
[339741322,1727921433231,-500.0,0.00019178,2]
[339741323,1727921433240,-855.78,0.00019178,2]
[339741324,1727921433250,-500.0,0.00019178,2]
[339741325,1727921433259,-1218.48,0.00019178,2]
[339741326,1727921433270,-644.5,0.00019178,2]
[339741327,1727921433279,-500.0,0.00019178,2]
[339741328,1727921433289,-188.51197882,0.00019178,2]
[339741329,1727921433298,-500.0,0.00019178,2]
[339741330,1727921433308,-1458.49,0.00019178,2]
[339741331,1727921433317,-968.4,0.00019178,2]
[339741332,1727921433326,-500.0,0.00019178,2]
[339741333,1727921433336,-905.44,0.00019178,2]
[339741334,1727921433346,-500.0,0.00019178,2]
[339741335,1727921433355,-500.0,0.00019178,2]
[339741336,1727921433365,-500.0,0.00019178,2]
[339741337,1727921433374,-1510.72,0.00019178,2]
[339741338,1727921433383,-748.22,0.00019178,2]
[339741339,1727921433393,-500.0,0.00019178,2]
[339741340,1727921433404,-500.0,0.00019178,2]
[339741341,1727921433414,-1375.07,0.00019178,2]
[339741342,1727921433423,-675.09,0.00019178,2]
[339741343,1727921433433,-1923.68,0.00019178,2]
[339741344,1727921433442,-503.32930845,0.00019178,2]
[339741345,1727921433452,-686.5,0.00019178,5]
[339741346,1727921433461,-723.75,0.00019178,2]
[339741347,1727921433471,-500.0,0.00019178,2]
[339741348,1727921433480,-1212.49,0.00019178,2]
[339741349,1727921433490,-500.0,0.00019178,2]
[339741350,1727921433499,-1452.89,0.00019178,2]
[339741351,1727921433509,-1860.85,0.00019178,2]
[339741352,1727921433520,-500.0,0.00019178,2]
[339741353,1727921433535,-779.32,0.00019178,2]
[339741354,1727921433545,-1238.11,0.00019178,2]
[339741355,1727921433555,-780.78,0.00019178,2]
[339741356,1727921433565,-500.0,0.00019178,2]
[339741357,1727921433574,-831.55,0.00019178,2]
[339741358,1727921433586,-500.0,0.00019178,2]
[339741359,1727921433596,-500.0,0.00019178,2]
[339741360,1727921433607,-500.0,0.00019178,2]
[339741361,1727921433617,-500.0,0.00019178,2]
[339741362,1727921433627,-2011.28,0.00019178,2]
[339741363,1727921433637,-1048.65,0.00019178,2]
[339741364,1727921433647,-500.0,0.00019178,2]
[339741365,1727921433656,-500.0,0.00019178,2]
[339741366,1727921433666,-500.0,0.00019178,2]
[339741367,1727921433676,-500.0,0.00019178,2]
[339741368,1727921433686,-1109.22,0.00019178,2]
[339741369,1727921433696,-569.03,0.00019178,2]
[339741370,1727921433706,-682.01,0.00019178,2]
[339741371,1727921433716,-2008.58,0.00019178,2]
[339741372,1727921433726,-500.0,0.00019178,2]
[339741373,1727921433739,-500.0,0.00019178,2]
[339741374,1727921433749,-500.0,0.00019178,2]
[339741375,1727921433759,-709.41,0.00019178,2]
[339741376,1727921433777,-500.0,0.00019178,2]
[339741377,1727921433787,-3122.8,0.00019178,2]
[339741378,1727921433796,-2133.73,0.00019178,2]
[339741379,1727921433807,-1372.19,0.00019178,2]
[339741380,1727921433817,-2830.34,0.00019178,2]
[339741381,1727921433827,-500.0,0.00019178,2]
[339741382,1727921433836,-500.0,0.00019178,2]
[339741383,1727921433846,-500.0,0.00019178,2]
[339741384,1727921433855,-1618.89,0.00019178,2]
[339741385,1727921433865,-500.0,0.00019178,2]
[339741386,1727921433875,-2037.67,0.00019178,2]
[339741387,1727921433884,-500.0,0.00019178,2]
[339741388,1727921433895,-500.0,0.00019178,2]
[339741389,1727921433905,-500.0,0.00019178,2]
[339741390,1727921433915,-916.25,0.00019178,2]
[339741391,1727921433925,-511.02,0.00019178,2]
[339741392,1727921433935,-500.0,0.00019178,2]
[339741393,1727921433944,-1285.75,0.00019178,2]
[339741394,1727921433954,-504.19078462,0.00019178,2]
[339741395,1727921433963,-795.95,0.00019178,2]
[339741396,1727921433974,-500.0,0.00019178,2]
[339741397,1727921433983,-923.72,0.00019178,2]
[339741398,1727921433992,-500.0,0.00019178,2]
[339741399,1727921434002,-500.0,0.00019178,2]
[339741400,1727921434011,-892.62,0.00019178,2]
[339741401,1727921434027,-2477.32,0.00019178,2]
[339741402,1727921434036,-500.0,0.00019178,2]
[339741403,1727921434046,-564.15,0.00019178,2]
[339741404,1727921434056,-500.0,0.00019178,2]
[339741405,1727921434065,-500.0,0.00019178,2]
[339741406,1727921434075,-500.0,0.00019178,2]
[339741407,1727921434086,-1747.79,0.00019178,2]
[339741408,1727921434096,-551.1,0.00019178,2]
[339741409,1727921434107,-603.07,0.00019178,2]
[339741410,1727921434117,-667.62,0.00019178,2]
[339741411,1727921434126,-501.97191138,0.00019178,2]
[339741412,1727921434136,-1797.45,0.00019178,2]
[339741413,1727921434145,-1172.86,0.00019178,2]
[339741414,1727921434155,-500.0,0.00019178,2]
[339741415,1727921434165,-267.34445631,0.00019178,2]
[339741416,1727921434178,-251.88554369,0.00019178,2]
[339741417,1727921434188,-692.46,0.00019178,2]
[339741418,1727921434197,-82.05269724,0.00019178,2]
[339741420,1727921434359,-417.94730276,0.00019178,2]
[339741421,1727921434369,-546.57,0.00019178,2]
[339741422,1727921434379,-1458.8,0.00019178,2]
[339741423,1727921434390,-959.1,0.00019178,2]
[339741424,1727921434400,-1672.48850494,0.00019178,2]
[339741425,1727921434413,-402.31913625,0.00019178,2]
[339741431,1727921437750,-478.87235881,0.00019178,2]
[339741433,1727921437759,-508.58508044,0.00019178,2]
[339741435,1727921437774,-230.97491956,0.00019178,2]
[339741436,1727921437783,-1476.81,0.00019178,2]
[339741437,1727921437792,-500.0,0.00019178,2]
[339741438,1727921437801,-500.0,0.00019178,2]
[339741439,1727921437813,-683.67,0.00019178,2]
[339741440,1727921437822,-3077.55,0.00019178,2]
[339741441,1727921437830,-1021.98,0.00019178,2]
[339741442,1727921437840,-1166.12,0.00019178,2]
[339741443,1727921437849,-590.11257224,0.00019178,2]
[339741444,1727921437860,-11.82742776,0.00019178,2]
[339741446,1727921437869,-526.24265209,0.00019178,2]
[339741447,1727921437878,-285.93501565,0.00019178,2]
[339741448,1727921437891,-214.06498435,0.00019178,2]
[339741449,1727921437901,-264.25461483,0.00019178,2]
[339741450,1727921438016,-644.68559983,0.00019178,2]
[339741451,1727921438029,-1016.61,0.00019178,2]
[339741452,1727921438040,-293.16978534,0.00019178,2]
[339741453,1727921438050,-500.0,0.00019178,2]
[339741454,1727921438059,-660.44,0.00019178,2]
[339741455,1727921438069,-262.03551886,0.00019178,2]
[339741456,1727921438080,-237.96448114,0.00019178,2]
[339741457,1727921438089,-500.0,0.00019178,2]
[339741458,1727921438099,-500.0,0.00019178,2]
[339741459,1727921438108,-500.0,0.00019178,2]
[339741460,1727921438118,-1722.17,0.00019178,2]
[339741461,1727921438127,-182.46806182,0.00019178,2]
[339741464,1727921438139,-317.53193818,0.00019178,2]
[339741466,1727921438149,-1217.26,0.00019178,2]
[339741468,1727921438158,-2329.5,0.00019178,2]
[339741470,1727921438168,-33281.69102162,0.00019451,2]
[339741472,1727921438180,-818.775,0.00019451,2]
[339741478,1727921439996,-481.30617509,0.00019178,2]
[339741479,1727921440008,-728.88382491,0.00019178,2]
[339741480,1727921440017,-65909.51543174,0.00019451,2]
[339741481,1727921440036,-3897.88,0.00019451,2]
[339741482,1727921440045,-1020.05,0.00019451,2]
[339741483,1727921440055,-1100.49,0.00019451,2]
[339741484,1727921440064,-3293.57,0.00019452,2]
[339741485,1727921440074,-771.34,0.00019452,2]
[339741486,1727921440083,-500.0,0.00019452,2]
[339741487,1727921440092,-500.0,0.00019452,2]
[339741488,1727921440101,-2143.19,0.00019452,2]
[339741490,1727921440111,-500.0,0.00019452,2]
[339741492,1727921440120,-500.0,0.00019452,2]
[339741494,1727921440130,-1074.93,0.00019452,2]
[339741496,1727921440140,-608.43,0.00019452,2]
[339741497,1727921440149,-500.0,0.00019452,2]
[339741499,1727921440159,-500.0,0.00019452,2]
[339741501,1727921440168,-500.0,0.00019452,2]
[339741503,1727921440177,-972.12,0.00019452,2]
[339741505,1727921440186,-178.14379739,0.00019452,2]
[339741507,1727921440196,-855.78,0.00019452,2]
[339741509,1727921440205,-500.0,0.00019452,2]
[339741511,1727921440214,-1218.48,0.00019452,2]
[339741513,1727921440224,-644.5,0.00019452,2]
[339741515,1727921440233,-500.0,0.00019452,2]
[339741517,1727921440241,-500.0,0.00019452,2]
[339741518,1727921440250,-968.4,0.00019452,2]
[339741520,1727921440259,-1458.49,0.00019452,2]
[339741522,1727921440270,-905.44,0.00019452,2]
[339741524,1727921440280,-500.0,0.00019452,2]
[339741526,1727921440289,-500.0,0.00019452,2]
[339741528,1727921440298,-1510.72,0.00019452,2]
[339741530,1727921440307,-748.22,0.00019452,2]
[339741532,1727921440317,-500.0,0.00019452,2]
[339741534,1727921440328,-502.87033434,0.00019452,2]
[339741536,1727921440338,-1375.07,0.00019452,2]
[339741538,1727921440348,-675.09,0.00019452,2]
[339741540,1727921440358,-686.5,0.00019452,5]
[339741542,1727921440367,-1923.68,0.00019452,2]
[339741544,1727921440377,-723.75,0.00019452,2]
[339741546,1727921440386,-500.0,0.00019452,2]
[339741548,1727921440396,-1212.49,0.00019452,2]
[339741550,1727921440405,-500.0,0.00019452,2]
[339741552,1727921440415,-1452.89,0.00019452,2]
[339741554,1727921440424,-1860.85,0.00019452,2]
[339741556,1727921440435,-500.0,0.00019452,2]
[339741558,1727921440444,-779.32,0.00019452,2]
[339741560,1727921440453,-1238.11,0.00019452,2]
[339741562,1727921440462,-780.78,0.00019452,2]
[339741564,1727921440471,-500.0,0.00019452,2]
[339741566,1727921440480,-831.55,0.00019452,2]
[339741568,1727921440489,-500.0,0.00019452,2]
[339741570,1727921440499,-500.0,0.00019452,2]
[339741572,1727921440508,-500.0,0.00019452,2]
[339741573,1727921440519,-500.0,0.00019452,2]
[339741575,1727921440528,-2011.28,0.00019452,2]
[339741577,1727921440538,-1048.65,0.00019452,2]
[339741579,1727921440547,-500.0,0.00019452,2]
[339741581,1727921440556,-508.52000722,0.00019452,2]
[339741583,1727921440566,-500.0,0.00019452,2]
[339741585,1727921440575,-500.0,0.00019452,2]
[339741587,1727921440585,-1109.22,0.00019452,2]
[339741589,1727921440595,-569.03,0.00019452,2]
[339741591,1727921440604,-682.01,0.00019452,2]
[339741593,1727921440614,-2008.58,0.00019452,2]
[339741595,1727921440623,-500.0,0.00019452,2]
[339741597,1727921440632,-500.0,0.00019452,2]
[339741599,1727921440642,-500.0,0.00019452,2]
[339741601,1727921440651,-709.41,0.00019452,2]
[339741603,1727921440660,-500.0,0.00019452,2]
[339741605,1727921440669,-3122.8,0.00019452,2]
[339741607,1727921440678,-2133.73,0.00019452,2]
[339741609,1727921440687,-1372.19,0.00019452,2]
[339741611,1727921440696,-2830.34,0.00019452,2]
[339741613,1727921440705,-500.0,0.00019452,2]
[339741615,1727921440714,-500.0,0.00019452,2]
[339741617,1727921440723,-500.0,0.00019452,2]
[339741619,1727921440734,-1618.89,0.00019452,2]
[339741620,1727921440743,-500.0,0.00019452,2]
[339741622,1727921440752,-2037.67,0.00019452,2]
[339741624,1727921440761,-500.0,0.00019452,2]
[339741626,1727921440774,-500.0,0.00019452,2]
[339741628,1727921440783,-502.0840894,0.00019452,2]
[339741630,1727921440792,-916.25,0.00019452,2]
[339741632,1727921440801,-511.02,0.00019452,2]
[339741634,1727921440810,-500.0,0.00019452,2]
[339741636,1727921440820,-1285.75,0.00019452,2]
[339741638,1727921440828,-795.95,0.00019452,2]
[339741640,1727921440837,-500.0,0.00019452,2]
[339741642,1727921440846,-923.72,0.00019452,2]
[339741644,1727921440855,-500.0,0.00019452,2]
[339741646,1727921440865,-500.0,0.00019452,2]
[339741648,1727921440874,-892.62,0.00019452,2]
[339741650,1727921440883,-2477.32,0.00019452,2]
[339741652,1727921440892,-500.0,0.00019452,2]
[339741654,1727921440902,-564.15,0.00019452,2]
[339741656,1727921440911,-500.0,0.00019452,2]
[339741658,1727921440921,-500.0,0.00019452,2]
[339741660,1727921440931,-500.0,0.00019452,2]
[339741661,1727921440941,-1747.79,0.00019452,2]
[339741663,1727921440951,-551.1,0.00019452,2]
[339741665,1727921440960,-603.07,0.00019452,2]
[339741667,1727921440970,-667.62,0.00019452,2]
[339741669,1727921440979,-1797.45,0.00019452,2]
[339741671,1727921440990,-1172.86,0.00019452,2]
[339741673,1727921440999,-500.0,0.00019452,2]
[339741675,1727921441008,-519.23,0.00019452,2]
[339741677,1727921441019,-692.46,0.00019452,2]
[339741679,1727921441028,-500.0,0.00019452,2]
[339741681,1727921441037,-546.57,0.00019452,2]
[339741683,1727921441046,-1458.8,0.00019452,2]
[339741684,1727921441057,-959.1,0.00019452,2]
[339741686,1727921441067,-2553.68,0.00019452,2]
[339741688,1727921441076,-739.56,0.00019452,2]
[339741690,1727921441085,-1476.81,0.00019452,2]
[339741692,1727921441095,-500.0,0.00019452,2]
[339741694,1727921441104,-500.0,0.00019452,2]
[339741697,1727921441113,-683.67,0.00019452,2]
[339741698,1727921441122,-3077.55,0.00019452,2]
[339741700,1727921441131,-1021.98,0.00019452,2]
[339741702,1727921441140,-1166.12,0.00019452,2]
[339741704,1727921441149,-601.94,0.00019452,2]
[339741706,1727921441158,-500.0,0.00019452,2]
[339741708,1727921441167,-2218.72,0.00019452,2]
[339741710,1727921441176,-500.0,0.00019452,2]
[339741712,1727921441185,-660.44,0.00019452,2]
[339741714,1727921441195,-500.0,0.00019452,2]
[339741716,1727921441204,-500.0,0.00019452,2]
[339741718,1727921441213,-500.0,0.00019452,2]
[339741720,1727921441222,-500.0,0.00019452,2]
[339741722,1727921441230,-1722.17,0.00019452,2]
[339741724,1727921441239,-394.84021754,0.00019452,2]
[339741726,1727921441248,-1217.26,0.00019452,2]
[339741728,1727921441257,-2329.5,0.00019452,2]
[339741730,1727921441266,-1210.19,0.00019452,2]
[339741732,1727921441278,-205.0,0.0001952,2]
[339741733,1727921441287,-202.0,0.0001954,2]
[339741735,1727921441296,-215.0,0.0001954,2]
[339741737,1727921441306,-1000.0,0.00019548,2]
[339741739,1727921441315,-9444.29443357,0.00019658,2]
[339741741,1727921441324,-3897.88,0.00019725,2]
[339741743,1727921441333,-1020.05,0.00019725,2]
[339741745,1727921441342,-1100.49,0.00019725,2]
[339741747,1727921441351,-3293.57,0.00019726,2]
[339741749,1727921441359,-771.34,0.00019726,2]
[339741751,1727921441368,-500.0,0.00019726,2]
[339741753,1727921441378,-500.0,0.00019726,2]
[339741755,1727921441387,-2143.19,0.00019726,2]
[339741757,1727921441396,-500.0,0.00019726,2]
[339741759,1727921441405,-500.0,0.00019726,2]
[339741761,1727921441414,-1074.93,0.00019726,2]
[339741762,1727921441423,-608.43,0.00019726,2]
[339741764,1727921441432,-500.0,0.00019726,2]
[339741766,1727921441441,-500.0,0.00019726,2]
[339741768,1727921441450,-500.0,0.00019726,2]
[339741770,1727921441459,-972.12,0.00019726,2]
[339741772,1727921441468,-855.78,0.00019726,2]
[339741774,1727921441477,-534.45268327,0.00019726,2]
[339741776,1727921441486,-1218.48,0.00019726,2]
[339741778,1727921441496,-644.5,0.00019726,2]
[339741780,1727921441505,-500.0,0.00019726,2]
[339741782,1727921441514,-500.0,0.00019726,2]
[339741783,1727921441525,-968.4,0.00019726,2]
[339741785,1727921441534,-1458.49,0.00019726,2]
[339741787,1727921441543,-905.44,0.00019726,2]
[339741789,1727921441552,-500.0,0.00019726,2]
[339741791,1727921441561,-500.0,0.00019726,2]
[339741793,1727921441571,-1510.72,0.00019726,2]
[339741795,1727921441580,-748.22,0.00019726,2]
[339741797,1727921441590,-500.0,0.00019726,2]
[339741799,1727921441600,-1375.07,0.00019726,2]
[339741801,1727921441609,-675.09,0.00019726,2]
[339741803,1727921441619,-686.5,0.00019726,5]
[339741805,1727921441629,-1923.68,0.00019726,2]
[339741807,1727921441638,-723.75,0.00019726,2]
[339741808,1727921441647,-500.0,0.00019726,2]
[339741810,1727921441656,-1212.49,0.00019726,2]
[339741812,1727921441665,-508.22821782,0.00019726,2]
[339741814,1727921441674,-1452.89,0.00019726,2]
[339741816,1727921441684,-517.33174826,0.00019726,2]
[339741818,1727921441694,-1860.85,0.00019726,2]
[339741820,1727921441703,-779.32,0.00019726,2]
[339741822,1727921441712,-1238.11,0.00019726,2]
[339741824,1727921441722,-780.78,0.00019726,2]
[339741826,1727921441735,-500.0,0.00019726,2]
[339741828,1727921441744,-831.55,0.00019726,2]
[339741830,1727921441753,-500.0,0.00019726,2]
[339741832,1727921441763,-500.0,0.00019726,2]
[339741834,1727921441775,-500.0,0.00019726,2]
[339741836,1727921441784,-500.0,0.00019726,2]
[339741838,1727921441793,-2011.28,0.00019726,2]
[339741840,1727921441805,-1048.65,0.00019726,2]
[339741841,1727921441814,-500.0,0.00019726,2]
[339741842,1727921441823,-500.0,0.00019726,2]
[339741843,1727921441832,-500.0,0.00019726,2]
[339741844,1727921441841,-1109.22,0.00019726,2]
[339741845,1727921441851,-569.03,0.00019726,2]
[339741846,1727921441860,-682.01,0.00019726,2]
[339741847,1727921441868,-2008.58,0.00019726,2]
[339741848,1727921441878,-500.0,0.00019726,2]
[339741849,1727921441887,-500.0,0.00019726,2]
[339741850,1727921441896,-709.41,0.00019726,2]
[339741851,1727921441905,-500.0,0.00019726,2]
[339741852,1727921441914,-3122.8,0.00019726,2]
[339741853,1727921441923,-2133.73,0.00019726,2]
[339741855,1727921441932,-1372.19,0.00019726,2]
[339741856,1727921441941,-2830.34,0.00019726,2]
[339741857,1727921441950,-500.0,0.00019726,2]
[339741858,1727921441959,-500.0,0.00019726,2]
[339741859,1727921441968,-500.0,0.00019726,2]
[339741860,1727921441977,-1618.89,0.00019726,2]
[339741861,1727921441986,-500.0,0.00019726,2]
[339741862,1727921441994,-2037.67,0.00019726,2]
[339741863,1727921442003,-500.0,0.00019726,2]
[339741865,1727921442013,-500.0,0.00019726,2]
[339741866,1727921442023,-916.25,0.00019726,2]
[339741867,1727921442032,-511.02,0.00019726,2]
[339741868,1727921442041,-500.0,0.00019726,2]
[339741869,1727921442062,-1285.75,0.00019726,2]
[339741870,1727921442071,-795.95,0.00019726,2]
[339741871,1727921442081,-500.0,0.00019726,2]
[339741872,1727921442090,-923.72,0.00019726,2]
[339741873,1727921442099,-500.0,0.00019726,2]
[339741874,1727921442108,-500.0,0.00019726,2]
[339741875,1727921442117,-892.62,0.00019726,2]
[339741876,1727921442127,-2477.32,0.00019726,2]
[339741877,1727921442136,-500.0,0.00019726,2]
[339741878,1727921442145,-564.15,0.00019726,2]
[339741879,1727921442154,-500.0,0.00019726,2]
[339741880,1727921442164,-500.0,0.00019726,2]
[339741881,1727921442173,-500.0,0.00019726,2]
[339741882,1727921442320,-1747.79,0.00019726,2]
[339741883,1727921442331,-551.1,0.00019726,2]
[339741884,1727921442340,-603.07,0.00019726,2]
[339741885,1727921442351,-667.62,0.00019726,2]
[339741886,1727921442361,-1797.45,0.00019726,2]
[339741887,1727921442372,-1172.86,0.00019726,2]
[339741888,1727921442382,-504.53264883,0.00019726,2]
[339741889,1727921442392,-519.23,0.00019726,2]
[339741890,1727921442403,-692.46,0.00019726,2]
[339741891,1727921442412,-500.0,0.00019726,2]
[339741892,1727921442422,-546.57,0.00019726,2]
[339741893,1727921442432,-1458.8,0.00019726,2]
[339741894,1727921442441,-959.1,0.00019726,2]
[339741895,1727921442451,-2553.68,0.00019726,2]
[339741896,1727921442461,-1476.81,0.00019726,2]
[339741897,1727921442471,-739.56,0.00019726,2]
[339741898,1727921442481,-500.0,0.00019726,2]
[339741899,1727921442491,-500.0,0.00019726,2]
[339741900,1727921442500,-683.67,0.00019726,2]
[339741901,1727921442510,-3077.55,0.00019726,2]
[339741902,1727921442520,-1021.98,0.00019726,2]
[339741903,1727921442530,-601.94,0.00019726,2]
[339741904,1727921442539,-1166.12,0.00019726,2]
[339741905,1727921442548,-500.0,0.00019726,2]
[339741906,1727921442558,-2218.72,0.00019726,2]
[339741907,1727921442568,-500.0,0.00019726,2]
[339741908,1727921442578,-660.44,0.00019726,2]
[339741909,1727921442587,-500.0,0.00019726,2]
[339741910,1727921442596,-500.0,0.00019726,2]
[339741911,1727921442606,-500.0,0.00019726,2]
[339741912,1727921442615,-494.61526396,0.00019726,2]
[339741913,1727921442625,-1722.17,0.00019726,2]
[339741914,1727921442635,-1217.26,0.00019726,2]
[339741915,1727921442644,-2329.5,0.00019726,2]
[339741916,1727921442654,-1210.19,0.00019726,2]
[339741917,1727921442664,-202.0,0.000199,2]
[339741918,1727921442674,-215.0,0.000199,2]
[339741919,1727921442683,-219.86368052,0.00019999,2]
[339741920,1727921442693,-500.0,0.00019999,2]
[339741921,1727921442703,-189.69954696,0.00019999,2]
[339741922,1727921442712,-3897.88,0.00019999,2]
[339741923,1727921442722,-1020.05,0.00019999,2]
[339741924,1727921442735,-1100.49,0.00019999,2]
[339741925,1727921442745,-500.0,0.00019999,2]
[339741927,1727921442754,-150.0,0.0002,2]
[339741929,1727921442763,-3293.57,0.0002,2]
[339741931,1727921442777,-771.34,0.0002,2]
[339741933,1727921442786,-500.0,0.0002,2]
[339741936,1727921442796,-301.86294985,0.0002,2]
[339741939,1727921442806,-2143.19,0.0002,2]
[339741940,1727921442816,-500.0,0.0002,2]
[339741941,1727921442825,-1074.93,0.0002,2]
[339741942,1727921442835,-500.0,0.0002,2]
[339741943,1727921442844,-608.43,0.0002,2]
[339741944,1727921442854,-500.0,0.0002,2]
[339741945,1727921442863,-500.0,0.0002,2]
[339741946,1727921442873,-474.35512913,0.0002,2]
[339741947,1727921442883,-972.12,0.0002,2]
[339741948,1727921442892,-855.78,0.0002,2]
[339741949,1727921442903,-1218.48,0.0002,2]
[339741950,1727921442912,-644.5,0.0002,2]
[339741951,1727921442922,-500.0,0.0002,2]
[339741952,1727921442932,-500.0,0.0002,2]